fUST/lending_fUST_20260118
["ID","MTS","AMOUNT","RATE_DAILY","PERIOD"]
[402408958,1768673441006,-500.0,0.00016438,3]
[402408960,1768673441016,-500.0,0.00016438,3]
[402408962,1768673441025,-500.0,0.00016438,3]
[402408964,1768673441035,-500.0,0.00016438,3]
[402408966,1768673441045,-500.0,0.00016438,3]
[402408968,1768673441054,-500.0,0.00016438,3]
[402408970,1768673441064,-1149.6,0.00016438,3]
[402408972,1768673441076,-734.9,0.00016438,3]
[402408974,1768673441085,-500.0,0.00016438,3]
[402408976,1768673441095,-500.0,0.00016438,3]
[402408978,1768673441105,-500.0,0.00016438,3]
[402408981,1768673441116,-601.27,0.00016438,3]
[402408983,1768673441125,-500.0,0.00016438,3]
[402408985,1768673441135,-1319.02,0.00016438,3]
[402408987,1768673441144,-500.0,0.00016438,3]
[402408989,1768673441154,-500.0,0.00016438,3]
[402408990,1768673441165,-722.88,0.00016438,3]
[402408992,1768673441174,-570.18,0.00016438,3]
[402408995,1768673441184,-500.0,0.00016438,3]
[402408997,1768673441194,-1200.0,0.00016438,2]
[402408999,1768673441204,-500.0,0.00016438,3]
[402409001,1768673441213,-500.0,0.00016438,3]
[402409003,1768673441223,-500.0,0.00016438,3]
[402409005,1768673441232,-500.0,0.00016438,3]
[402409007,1768673441241,-648.16,0.00016438,3]
[402409009,1768673441251,-500.0,0.00016438,3]
[402409011,1768673441261,-310.90446794,0.00016438,3]
[402409013,1768673441272,-500.0,0.00016438,3]
[402409015,1768673441281,-500.0,0.00016438,3]
[402409017,1768673441291,-500.0,0.00016438,3]
[402409019,1768673441300,-500.0,0.00016438,3]
[402409021,1768673441310,-500.0,0.00016438,3]
[402409023,1768673441319,-500.0,0.00016438,3]
[402409025,1768673441329,-500.0,0.00016438,3]
[402409027,1768673441339,-500.0,0.00016438,3]
[402409029,1768673441348,-500.0,0.00016438,3]
[402409031,1768673441358,-578.77,0.00016438,3]
[402409033,1768673441367,-500.0,0.00016438,3]
[402409035,1768673441377,-500.0,0.00016438,3]
[402409037,1768673441387,-500.0,0.00016438,3]
[402409039,1768673441397,-500.0,0.00016438,3]
[402409041,1768673441406,-989.92,0.00016438,3]
[402409043,1768673441416,-500.0,0.00016438,3]
[402409045,1768673441425,-1280.45,0.00016438,3]
[402409048,1768673441436,-500.0,0.00016438,3]
[402409050,1768673441446,-731.64,0.00016438,3]
[402409052,1768673441456,-836.51,0.00016438,3]
[402409054,1768673441466,-500.0,0.00016438,3]
[402409056,1768673441475,-500.0,0.00016438,3]
[402409058,1768673441485,-538.98,0.00016438,3]
[402409060,1768673441494,-733.15,0.00016438,3]
[402409062,1768673441503,-500.0,0.00016438,3]
[402409064,1768673441513,-500.0,0.00016438,3]
[402409066,1768673441522,-500.0,0.00016438,3]
[402409068,1768673441531,-500.0,0.00016438,3]
[402409070,1768673441541,-500.0,0.00016438,3]
[402409072,1768673441550,-500.0,0.00016438,3]
[402409074,1768673441560,-500.0,0.00016438,3]
[402409076,1768673441570,-708.25,0.00016438,3]
[402409078,1768673441580,-500.0,0.00016438,3]
[402409080,1768673441590,-620.62,0.00016438,3]
[402409082,1768673441599,-500.0,0.00016438,3]
[402409084,1768673441608,-500.0,0.00016438,3]
[402409086,1768673441617,-500.0,0.00016438,3]
[402409088,1768673441627,-500.0,0.00016438,3]
[402409090,1768673441638,-582.2,0.00016438,3]
[402409092,1768673441647,-719.8,0.00016438,3]
[402409094,1768673441661,-500.0,0.00016438,3]
[402409096,1768673441670,-500.0,0.00016438,3]
[402409098,1768673441680,-764.75,0.00016438,3]
[402409100,1768673441690,-859.3,0.00016438,3]
[402409103,1768673441702,-985.52,0.00016438,3]
[402409105,1768673441712,-1406.13,0.00016438,3]
[402409107,1768673441721,-1027.27,0.00016438,3]
[402409109,1768673441731,-877.66,0.00016438,3]
[402409111,1768673441741,-500.0,0.00016438,3]
[402409113,1768673441750,-500.0,0.00016438,3]
[402409115,1768673441760,-500.0,0.00016438,3]
[402409117,1768673441769,-500.0,0.00016438,3]
[402409119,1768673441780,-500.0,0.00016438,3]
[402409121,1768673441789,-500.0,0.00016438,3]
[402409123,1768673441799,-500.0,0.00016438,3]
[402409125,1768673441809,-566.69,0.00016438,3]
[402409127,1768673441819,-500.0,0.00016438,3]
[402409129,1768673441828,-500.0,0.00016438,3]
[402409131,1768673441839,-743.02,0.00016438,3]
[402409133,1768673441849,-857.01,0.00016438,3]
[402409135,1768673441859,-500.0,0.00016438,3]
[402409137,1768673441868,-500.0,0.00016438,3]
[402409139,1768673441878,-500.0,0.00016438,3]
[402409141,1768673441888,-690.28,0.00016438,3]
[402409143,1768673441897,-500.0,0.00016438,3]
[402409145,1768673441907,-500.0,0.00016438,3]
[402409147,1768673441917,-500.0,0.00016438,3]
[402409150,1768673441927,-500.0,0.00016438,3]
[402409151,1768673441937,-588.42,0.00016438,3]
[402409154,1768673441947,-629.49,0.00016438,3]
[402409156,1768673441956,-500.0,0.00016438,3]
[402409158,1768673441965,-500.0,0.00016438,3]
[402409160,1768673441974,-500.0,0.00016438,3]
[402409162,1768673441984,-500.0,0.00016438,3]
[402409164,1768673441993,-500.0,0.00016438,3]
[402409166,1768673442003,-500.0,0.00016438,3]
[402409168,1768673442013,-500.0,0.00016438,3]
[402409170,1768673442022,-500.0,0.00016438,3]
[402409172,1768673442031,-500.0,0.00016438,3]
[402409174,1768673442041,-500.0,0.00016438,3]
[402409176,1768673442050,-1075.75,0.00016438,3]
[402409178,1768673442059,-605.49,0.00016438,3]
[402409180,1768673442068,-500.0,0.00016438,3]
[402409193,1768673442185,-500.0,0.00016438,3]
[402409195,1768673442195,-500.0,0.00016438,3]
[402409197,1768673442205,-1080.0,0.00016438,3]
[402409199,1768673442214,-500.0,0.00016438,3]
[402409201,1768673442223,-855.76,0.00016438,3]
[402409203,1768673442232,-1053.38,0.00016438,3]
[402409205,1768673442242,-740.72,0.00016438,3]
[402409207,1768673442251,-681.97,0.00016438,3]
[402409209,1768673442260,-500.0,0.00016438,3]
[402409211,1768673442269,-500.0,0.00016438,3]
[402409213,1768673442278,-500.0,0.00016438,3]
[402409215,1768673442287,-600.35,0.00016438,3]
[402409217,1768673442295,-500.0,0.00016438,3]
[402409219,1768673442304,-751.23,0.00016438,3]
[402409221,1768673442313,-556.52,0.00016438,3]
[402409223,1768673442322,-1038.28,0.00016438,3]
[402409225,1768673442331,-426.38732043,0.00016438,3]
[402409227,1768673442340,-1190.86,0.00016438,3]
[402409229,1768673442349,-500.0,0.00016438,3]
[402409231,1768673442358,-500.0,0.00016438,3]
[402409233,1768673442367,-500.0,0.00016438,3]
[402409235,1768673442376,-500.0,0.00016438,3]
[402409237,1768673442385,-810.68,0.00016438,3]
[402409239,1768673442394,-500.0,0.00016438,3]
[402409241,1768673442404,-500.0,0.00016438,3]
[402409243,1768673442414,-747.65,0.00016438,3]
[402409245,1768673442423,-500.0,0.00016438,3]
[402409247,1768673442432,-500.0,0.00016438,3]
[402409249,1768673442441,-693.66,0.00016438,3]
[402409251,1768673442450,-1087.06,0.00016438,3]
[402409253,1768673442459,-497.71228405,0.00016438,3]
[402409254,1768673442468,-1460.66,0.00016438,3]
[402409256,1768673442477,-1099.81,0.00016438,3]
[402409258,1768673442486,-500.0,0.00016438,3]
[402409260,1768673442496,-500.0,0.00016438,3]
[402409262,1768673442505,-500.0,0.00016438,3]
[402409264,1768673442515,-932.62,0.00016438,3]
[402409266,1768673442524,-500.0,0.00016438,3]
[402409268,1768673442533,-500.0,0.00016438,3]
[402409270,1768673442542,-643.56,0.00016438,3]
[402409272,1768673442552,-500.0,0.00016438,3]
[402409274,1768673442562,-500.0,0.00016438,3]
[402409276,1768673442571,-500.0,0.00016438,3]
[402409278,1768673442580,-500.0,0.00016438,3]
[402409280,1768673442590,-500.0,0.00016438,3]
[402409282,1768673442600,-1153.67,0.00016438,3]
[402409284,1768673442609,-500.0,0.00016438,3]
[402409286,1768673442619,-500.0,0.00016438,3]
[402409288,1768673442631,-500.0,0.00016438,3]
[402409290,1768673442640,-1608.92,0.00016438,3]
[402409292,1768673442650,-1138.47,0.00016438,3]
[402409294,1768673442662,-500.0,0.00016438,3]
[402409296,1768673442671,-500.0,0.00016438,3]
[402409298,1768673442680,-500.0,0.00016438,3]
[402409300,1768673442689,-500.0,0.00016438,3]
[402409302,1768673442700,-621.29598782,0.00016438,3]
[402409304,1768673442709,-500.0,0.00016438,3]
[402409306,1768673442717,-500.0,0.00016438,3]
[402409308,1768673442726,-500.0,0.00016438,3]
[402409310,1768673442738,-500.0,0.00016438,3]
[402409312,1768673442747,-1129.5,0.00016438,3]
[402409314,1768673442756,-500.0,0.00016438,3]
[402409316,1768673442766,-500.0,0.00016438,3]
[402409318,1768673442775,-500.0,0.00016438,3]
[402409320,1768673442784,-500.0,0.00016438,3]
[402409322,1768673442793,-500.0,0.00016438,3]
[402409324,1768673442802,-1087.01,0.00016438,3]
[402409326,1768673442812,-500.0,0.00016438,2]
[402409328,1768673442821,-413.82786388,0.00016438,2]
[402409331,1768673442830,-786.84,0.00016438,3]
[402409333,1768673442839,-652.51,0.00016438,3]
[402409335,1768673442848,-500.0,0.00016438,3]
[402409337,1768673442858,-500.0,0.00016438,3]
[402409339,1768673442867,-500.0,0.00016438,3]
[402409342,1768673442877,-500.0,0.00016438,3]
[402409344,1768673442886,-500.0,0.00016438,3]
[402409346,1768673442895,-500.0,0.00016438,3]
[402409348,1768673442905,-500.0,0.00016438,3]
[402409350,1768673442914,-886.56,0.00016438,3]
[402409352,1768673442923,-1015.35,0.00016438,3]
[402409354,1768673442932,-500.0,0.00016438,3]
[402409356,1768673442941,-500.0,0.00016438,3]
[402409358,1768673442950,-500.0,0.00016438,3]
[402409360,1768673442964,-500.0,0.00016438,3]
[402409362,1768673442974,-500.0,0.00016438,3]
[402409364,1768673442983,-1624.38,0.00016438,3]
[402409366,1768673442993,-500.0,0.00016438,3]
[402409368,1768673443002,-500.0,0.00016438,3]
[402409370,1768673443011,-500.0,0.00016438,3]
[402409372,1768673443020,-1501.02,0.00016438,3]
[402409374,1768673443029,-500.0,0.00016438,3]
[402409377,1768673443039,-500.0,0.00016438,3]
[402409379,1768673443048,-500.0,0.00016438,3]
[402409381,1768673443057,-500.0,0.00016438,3]
[402409383,1768673443066,-500.0,0.00016438,3]
[402409385,1768673443076,-500.0,0.00016438,3]
[402409387,1768673443085,-500.0,0.00016438,3]
[402409389,1768673443093,-500.0,0.00016438,3]
[402409391,1768673443102,-1475.41,0.00016438,3]
[402409393,1768673443111,-500.0,0.00016438,3]
[402409395,1768673443121,-651.72,0.00016438,3]
[402409397,1768673443130,-1969.51,0.00016438,3]
[402409399,1768673443139,-547.09236024,0.00016438,3]
[402409401,1768673443148,-500.0,0.00016438,3]
[402409403,1768673443157,-500.0,0.00016438,3]
[402409405,1768673443167,-500.0,0.00016438,3]
[402409407,1768673443176,-1485.36,0.00016438,3]
[402409409,1768673443185,-500.0,0.00016438,3]
[402409411,1768673443195,-500.0,0.00016438,3]
[402409413,1768673443205,-500.0,0.00016438,3]
[402409415,1768673443214,-942.1,0.00016438,3]
[402409417,1768673443225,-500.0,0.00016438,3]
[402409419,1768673443234,-700.11,0.00016438,3]
[402409421,1768673443244,-775.53,0.00016438,3]
[402409422,1768673443253,-500.0,0.00016438,3]
[402409423,1768673443262,-500.0,0.00016438,3]
[402409424,1768673443271,-500.0,0.00016438,3]
[402409425,1768673443279,-1071.8,0.00016438,3]
[402409426,1768673443288,-500.0,0.00016438,3]
[402409427,1768673443297,-500.0,0.00016438,3]
[402409428,1768673443305,-500.0,0.00016438,3]
[402409429,1768673443314,-584.93,0.00016438,3]
[402409430,1768673443323,-500.0,0.00016438,3]
[402409431,1768673443331,-500.0,0.00016438,3]
[402409432,1768673443340,-500.0,0.00016438,3]
[402409433,1768673443349,-500.0,0.00016438,3]
[402409434,1768673443358,-500.0,0.00016438,3]
[402409435,1768673443367,-500.0,0.00016438,3]
[402409436,1768673443376,-1301.71,0.00016438,3]
[402409437,1768673443385,-500.0,0.00016438,3]
[402409438,1768673443393,-500.0,0.00016438,3]
[402409439,1768673443402,-500.0,0.00016438,3]
[402409440,1768673443411,-578.42,0.00016438,3]
[402409441,1768673443419,-1122.24,0.00016438,3]
[402409442,1768673443428,-500.0,0.00016438,3]
[402409443,1768673443438,-500.0,0.00016438,3]
[402409444,1768673443448,-500.0,0.00016438,3]
[402409445,1768673443457,-500.0,0.00016438,3]
[402409447,1768673443467,-500.0,0.00016438,3]
[402409449,1768673443477,-584.74,0.00016438,3]
[402409451,1768673443487,-500.0,0.00016438,3]
[402409453,1768673443496,-500.0,0.00016438,3]
[402409455,1768673443505,-5659.2,0.00016438,3]
[402409457,1768673443517,-500.0,0.00016438,3]
[402409459,1768673443526,-500.0,0.00016438,3]
[402409462,1768673443536,-1284.78,0.00016438,3]
[402409464,1768673443545,-500.0,0.00016438,3]
[402409465,1768673443554,-500.0,0.00016438,3]
[402409468,1768673443563,-1471.79,0.00016438,3]
[402409470,1768673443573,-655.67,0.00016438,3]
[402409471,1768673443582,-500.0,0.00016438,3]
[402409473,1768673443591,-500.0,0.00016438,3]
[402409476,1768673443600,-500.0,0.00016438,3]
[402409477,1768673443610,-1894.43,0.00016438,3]
[402409480,1768673443619,-596.03,0.00016438,3]
[402409483,1768673443628,-668.8,0.00016438,3]
[402409485,1768673443637,-1128.35,0.00016438,3]
[402409486,1768673443648,-311.24128532,0.00016438,3]
[402409488,1768673443661,-500.0,0.00016438,3]
[402409491,1768673443671,-672.38,0.00016438,3]
[402409492,1768673443680,-500.0,0.00016438,3]
[402409495,1768673443689,-525.51,0.00016438,3]
[402409497,1768673443699,-500.0,0.00016438,3]
[402409499,1768673443710,-478.36647413,0.00016438,3]
[402409501,1768673443720,-500.0,0.00016438,3]
[402409503,1768673443730,-500.0,0.00016438,3]
[402409504,1768673443739,-500.0,0.00016438,3]
[402409506,1768673443748,-500.0,0.00016438,3]
[402409508,1768673443756,-500.0,0.00016438,3]
[402409510,1768673443765,-500.0,0.00016438,3]
[402409512,1768673443774,-500.0,0.00016438,3]
[402409514,1768673443783,-500.0,0.00016438,3]
[402409516,1768673443792,-500.0,0.00016438,3]
[402409518,1768673443801,-1210.89,0.00016438,3]
[402409520,1768673443809,-500.0,0.00016438,3]
[402409522,1768673443818,-500.0,0.00016438,3]
[402409524,1768673443827,-500.0,0.00016438,3]
[402409526,1768673443836,-500.0,0.00016438,3]
[402409528,1768673443844,-500.0,0.00016438,3]
[402409530,1768673443853,-500.0,0.00016438,3]
[402409532,1768673443862,-500.0,0.00016438,3]
[402409534,1768673443871,-500.0,0.00016438,3]
[402409536,1768673443881,-206.61780172,0.00016438,3]
[402409538,1768673443890,-1023.74,0.00016438,3]
[402409540,1768673443899,-656.83,0.00016438,3]
[402409542,1768673443908,-500.0,0.00016438,3]
[402409544,1768673443917,-531.11,0.00016438,3]
[402409546,1768673443926,-858.8,0.00016438,3]
[402409548,1768673443935,-582.55,0.00016438,3]
[402409550,1768673443944,-932.84,0.00016438,3]
[402409552,1768673443954,-500.0,0.00016438,3]
[402409554,1768673443963,-500.0,0.00016438,3]
[402409555,1768673443973,-500.0,0.00016438,3]
[402409557,1768673443984,-2777.39,0.00016438,3]
[402409559,1768673443993,-621.03,0.00016438,3]
[402409562,1768673444003,-500.0,0.00016438,3]
[402409563,1768673444013,-765.06,0.00016438,3]
[402409565,1768673444022,-1105.49,0.00016438,3]
[402409567,1768673444031,-500.0,0.00016438,3]
[402409569,1768673444042,-500.0,0.00016438,3]
[402409571,1768673444051,-1199.9,0.00016438,3]
[402409573,1768673444060,-500.0,0.00016438,3]
[402409575,1768673444070,-729.29,0.00016438,3]
[402409577,1768673444079,-500.0,0.00016438,3]
[402409579,1768673444088,-1041.61,0.00016438,3]
[402409581,1768673444097,-500.0,0.00016438,3]
[402409583,1768673444106,-765.87,0.00016438,3]
[402409585,1768673444116,-500.0,0.00016438,3]
[402409587,1768673444125,-500.0,0.00016438,3]
[402409589,1768673444134,-500.0,0.00016438,3]
[402409591,1768673444143,-500.0,0.00016438,3]
[402409593,1768673444152,-979.16,0.00016438,3]
[402409595,1768673444161,-500.0,0.00016438,3]
[402409597,1768673444171,-500.0,0.00016438,3]
[402409599,1768673444180,-507.14,0.00016438,3]
[402409601,1768673444190,-500.0,0.00016438,3]
[402409603,1768673444199,-1302.88,0.00016438,3]
[402409605,1768673444209,-500.0,0.00016438,3]
[402409607,1768673444218,-500.0,0.00016438,3]
[402409609,1768673444228,-500.0,0.00016438,3]
[402409611,1768673444237,-500.0,0.00016438,3]
[402409613,1768673444253,-624.03,0.00016438,3]
[402409615,1768673444262,-833.87,0.00016438,3]
[402409617,1768673444271,-541.15,0.00016438,3]
[402409619,1768673444281,-517.75,0.00016438,3]
[402409621,1768673444289,-500.0,0.00016438,3]
[402409623,1768673444298,-1173.43,0.00016438,3]
[402409625,1768673444306,-1412.58,0.00016438,3]
[402409627,1768673444315,-926.54,0.00016438,3]
[402409629,1768673444323,-957.16,0.00016438,3]
[402409631,1768673444332,-500.0,0.00016438,3]
[402409633,1768673444341,-500.0,0.00016438,3]
[402409635,1768673444350,-500.0,0.00016438,3]
[402409637,1768673444360,-500.0,0.00016438,3]
[402409639,1768673444369,-895.88,0.00016438,3]
[402409641,1768673444378,-500.0,0.00016438,3]
[402409643,1768673444387,-500.0,0.00016438,3]
[402409645,1768673444396,-500.0,0.00016438,3]
[402409647,1768673444406,-1048.61,0.00016438,3]
[402409649,1768673444415,-1100.62,0.00016438,3]
[402409651,1768673444424,-500.0,0.00016438,3]
[402409653,1768673444433,-500.0,0.00016438,3]
[402409655,1768673444441,-158.66112729,0.00016438,3]
[402409657,1768673444452,-507.87,0.00016438,3]
[402409659,1768673444462,-500.0,0.00016438,3]
[402409661,1768673444471,-500.0,0.00016438,3]
[402409663,1768673444480,-500.0,0.00016438,3]
[402409665,1768673444489,-500.0,0.00016438,3]
[402409667,1768673444499,-500.0,0.00016438,3]
[402409669,1768673444508,-691.01,0.00016438,3]
[402409671,1768673444517,-500.0,0.00016438,3]
[402409673,1768673444526,-500.0,0.00016438,3]
[402409675,1768673444535,-727.56,0.00016438,3]
[402409677,1768673444544,-1899.74,0.00016438,3]
[402409679,1768673444553,-529.66608909,0.00016438,3]
[402409681,1768673444563,-500.0,0.00016438,3]
[402409683,1768673444571,-500.0,0.00016438,3]
[402409685,1768673444581,-751.41,0.00016438,3]
[402409686,1768673444589,-500.0,0.00016438,3]
[402409688,1768673444599,-641.3,0.00016438,3]
[402409691,1768673444615,-576.24,0.00016438,3]
[402409692,1768673444633,-500.0,0.00016438,3]
[402409694,1768673444643,-500.0,0.00016438,3]
[402409697,1768673444653,-500.0,0.00016438,3]
[402409699,1768673444666,-500.0,0.00016438,3]
[402409701,1768673444674,-500.0,0.00016438,3]
[402409703,1768673444683,-500.0,0.00016438,3]
[402409705,1768673444693,-500.0,0.00016438,3]
[402409707,1768673444703,-907.81,0.00016438,3]
[402409709,1768673444711,-480.06845953,0.00016438,3]
[402409711,1768673444720,-530.35,0.00016438,3]
[402409713,1768673444729,-525.87,0.00016438,3]
[402409715,1768673444741,-500.0,0.00016438,3]
[402409717,1768673444749,-536.65897098,0.00016438,3]
[402409719,1768673444758,-500.0,0.00016438,3]
[402409721,1768673444767,-206.13170951,0.00016438,3]
[402409723,1768673444775,-891.06,0.00016438,3]
[402409725,1768673444786,-1118.5,0.00016438,3]
[402409727,1768673444794,-500.0,0.00016438,3]
[402409728,1768673444802,-500.0,0.00016438,3]
[402409729,1768673444811,-1197.27,0.00016438,3]
[402409731,1768673444820,-375.27196908,0.00016438,3]
[402409733,1768673444829,-1505.66,0.00016438,3]
[402409734,1768673444839,-10753.04,0.00016438,3]
[402409736,1768673444848,-500.0,0.00016438,3]
[402409737,1768673444857,-502.83,0.00016438,3]
[402409738,1768673444866,-500.0,0.00016438,3]
[402409740,1768673444875,-500.0,0.00016438,3]
[402409742,1768673444884,-500.0,0.00016438,3]
[402409743,1768673444894,-500.0,0.00016438,3]
[402409745,1768673444903,-500.0,0.00016438,3]
[402409746,1768673444912,-763.52,0.00016438,3]
[402409747,1768673444921,-500.0,0.00016438,3]
[402409749,1768673444930,-613.06,0.00016438,3]
[402409750,1768673444939,-500.0,0.00016438,3]
[402409752,1768673444949,-825.28,0.00016438,3]
[402409753,1768673444958,-1733.55,0.00016438,3]
[402409755,1768673444968,-550.27,0.00016438,3]
[402409757,1768673444978,-1085.52,0.00016438,3]
[402409758,1768673444987,-1089.38,0.00016438,3]
[402409760,1768673444996,-500.0,0.00016438,3]
[402409761,1768673445006,-839.35,0.00016438,3]
[402409763,1768673445015,-500.0,0.00016438,3]
[402409764,1768673445024,-500.0,0.00016438,3]
[402409766,1768673445032,-971.87,0.00016438,3]
[402409767,1768673445041,-500.0,0.00016438,3]
[402409769,1768673445050,-500.0,0.00016438,3]
[402409771,1768673445059,-669.84,0.00016438,3]
[402409772,1768673445068,-500.0,0.00016438,3]
[402409774,1768673445077,-1000.0,0.00016438,2]
[402409775,1768673445086,-500.0,0.00016438,3]
[402409777,1768673445096,-500.0,0.00016438,3]
[402409779,1768673445105,-500.0,0.00016438,3]
[402409780,1768673445114,-500.0,0.00016438,3]
[402409782,1768673445124,-1046.59,0.00016438,3]
[402409784,1768673445133,-500.0,0.00016438,3]
[402409785,1768673445141,-986.82,0.00016438,3]
[402409787,1768673445151,-2434.81,0.00016438,3]
[402409788,1768673445159,-500.0,0.00016438,3]
[402409790,1768673445169,-1286.07,0.00016438,3]
[402409792,1768673445178,-797.23,0.00016438,3]
[402409793,1768673445186,-1063.7,0.00016438,3]
[402409795,1768673445195,-500.0,0.00016438,3]
[402409796,1768673445204,-155.57377074,0.00016438,3]
[402409798,1768673445213,-1174.02,0.00016438,3]
[402409799,1768673445223,-500.0,0.00016438,3]
[402409801,1768673445232,-500.0,0.00016438,3]
[402409803,1768673445242,-555.01,0.00016438,3]
[402409804,1768673445251,-500.0,0.00016438,3]
[402409806,1768673445260,-500.0,0.00016438,3]
[402409807,1768673445269,-500.0,0.00016438,3]
[402409809,1768673445278,-500.0,0.00016438,3]
[402409811,1768673445287,-700.86,0.00016438,3]
[402409812,1768673445296,-588.98,0.00016438,3]
[402409814,1768673445304,-500.0,0.00016438,2]
[402409815,1768673445313,-500.0,0.00016438,3]
[402409817,1768673445322,-500.0,0.00016438,3]
[402409819,1768673445331,-500.0,0.00016438,3]
[402409820,1768673445340,-500.0,0.00016438,3]
[402409822,1768673445350,-500.0,0.00016438,2]
[402409824,1768673445360,-988.18,0.00016438,3]
[402409825,1768673445369,-500.0,0.00016438,3]
[402409827,1768673445378,-500.0,0.00016438,3]
[402409828,1768673445387,-999.54,0.00016438,3]
[402409830,1768673445395,-500.0,0.00016438,3]
[402409831,1768673445405,-500.0,0.00016438,3]
[402409833,1768673445414,-887.47,0.00016438,3]
[402409835,1768673445422,-534.62,0.00016438,3]
[402409836,1768673445431,-156.77330136,0.00016438,2]
[402409838,1768673445440,-500.0,0.00016438,3]
[402409839,1768673445449,-668.79,0.00016438,3]
[402409841,1768673445458,-500.0,0.00016438,3]
[402409843,1768673445468,-500.0,0.00016438,3]
[402409844,1768673445477,-1371.67,0.00016438,3]
[402409846,1768673445486,-779.15,0.00016438,3]
[402409847,1768673445497,-500.0,0.00016438,3]
[402409849,1768673445506,-500.0,0.00016438,3]
[402409851,1768673445515,-530.82,0.00016438,3]
[402409852,1768673445524,-728.86,0.00016438,3]
[402409854,1768673445534,-500.0,0.00016438,3]
[402409856,1768673445543,-500.0,0.00016438,3]
[402409857,1768673445552,-500.0,0.00016438,3]
[402409859,1768673445562,-500.0,0.00016438,3]
[402409860,1768673445571,-957.32,0.00016438,3]
[402409862,1768673445580,-774.25,0.00016438,3]
[402409863,1768673445589,-500.0,0.00016438,3]
[402409865,1768673445599,-1319.95,0.00016438,3]
[402409867,1768673445608,-500.0,0.00016438,3]
[402409868,1768673445617,-500.0,0.00016438,2]
[402409870,1768673445626,-1367.0,0.00016632,2]
[402409871,1768673445635,-2147.0,0.00016632,2]
[402409873,1768673445644,-629.0,0.00016632,2]
[402409875,1768673445654,-417.0,0.00016632,2]
[402409876,1768673445667,-417.0,0.00016632,2]
[402409878,1768673445677,-860.579,0.00016632,2]
[402409880,1768673445685,-199.164,0.00016632,2]
[402409881,1768673445695,-500.0,0.00016712,3]
[402409883,1768673445707,-532.65564852,0.00016712,2]
[402409884,1768673445715,-500.0,0.00016712,3]
[402409886,1768673445725,-500.0,0.00016712,3]
[402409888,1768673445741,-500.0,0.00016712,3]
[402409889,1768673445755,-500.0,0.00016712,3]
[402409891,1768673445764,-500.0,0.00016712,3]
[402409893,1768673445774,-500.0,0.00016712,3]
[402409894,1768673445784,-531.57,0.00016712,3]
[402409896,1768673445794,-500.0,0.00016712,3]
[402409897,1768673445803,-645.66,0.00016712,3]
[402409900,1768673445813,-500.0,0.00016712,3]
[402409903,1768673445822,-1004.37,0.00016712,3]
[402409904,1768673445831,-500.0,0.00016712,3]